fUSD/lending_fUSD_20250820
["ID","MTS","AMOUNT","RATE_DAILY","PERIOD"]
[380393383,1755725440775,-453.0,0.00022192,7]
[380393385,1755725440784,-2362.0,0.00022226,2]
[380393387,1755725440793,-355.47,0.00022241,2]
[380393389,1755725440803,-155.76,0.00022318,2]
[380393392,1755725440812,-2362.0,0.00022338,2]
[380393393,1755725440822,-2362.0,0.0002236,2]
[380393396,1755725440831,-300.0,0.00022399,2]
[380393398,1755725440841,-300.0,0.00022399,2]
[380393400,1755725440850,-666.0,0.00022399,2]
[380393402,1755725440859,-300.0,0.00022399,2]
[380393404,1755725440868,-666.0,0.00022399,2]
[380393406,1755725440878,-212.04014818,0.000224,7]
[380393408,1755725440887,-458.46930693,0.000224,7]
[380393410,1755725440896,-453.0,0.00022466,7]
[380393412,1755725440906,-2362.0,0.0002247,2]
[380393414,1755725440916,-1000.0,0.00022521,2]
[380393416,1755725440925,-1000.0,0.00022521,2]
[380393418,1755725440935,-1000.0,0.00022521,2]
[380393419,1755725440944,-1000.0,0.00022521,2]
[380393420,1755725440954,-1000.0,0.00022521,2]
[380393421,1755725440963,-1000.0,0.00022521,2]
[380393422,1755725440972,-1090.64711466,0.00022521,2]
[380393423,1755725440982,-1000.0,0.00022521,2]
[380393424,1755725440991,-1000.0,0.00022521,2]
[380393425,1755725441002,-1000.0,0.00022521,2]
[380393427,1755725441011,-1000.0,0.00022521,2]
[380393429,1755725441021,-2362.0,0.00022554,2]
[380393431,1755725441030,-2362.0,0.00022561,2]
[380393433,1755725441040,-2362.0,0.00022572,2]
[380393435,1755725441049,-2362.0,0.0002261,2]
[380393437,1755725441059,-2362.0,0.00022623,2]
[380393439,1755725441068,-2362.0,0.0002269,2]
[380393441,1755725441077,-2362.0,0.00022732,2]
[380393443,1755725441086,-453.0,0.0002274,7]
[380393445,1755725441096,-2362.0,0.00022767,2]
[380393447,1755725441109,-2362.0,0.00022815,2]
[380393449,1755725441119,-170330.17,0.000229,7]
[380393451,1755725441129,-4000.0,0.00023,4]
[380393453,1755725441138,-453.0,0.00023014,7]
[380393455,1755725441147,-453.0,0.00023014,7]
[380393457,1755725441156,-1500.0,0.00023068,2]
[380393459,1755725441165,-1500.0,0.00023068,2]
[380393461,1755725441174,-1102.99012364,0.00023068,2]
[380393463,1755725441185,-1500.0,0.00023068,2]
[380393465,1755725441195,-1500.0,0.00023068,2]
[380393467,1755725441204,-1500.0,0.00023068,2]
[380393469,1755725441214,-1500.0,0.00023068,2]
[380393471,1755725441224,-1500.0,0.00023068,2]
[380393473,1755725441234,-1500.0,0.00023068,2]
[380393475,1755725441243,-1500.0,0.00023068,2]
[380393477,1755725441253,-2362.0,0.00023309,2]
[380393479,1755725441263,-2362.0,0.00023421,2]
[380393481,1755725441274,-2362.0,0.00023463,2]
[380393483,1755725441283,-1478.88,0.00023562,7]
[380393485,1755725441293,-2362.0,0.0002359,2]
[380393487,1755725441302,-180.34262481,0.00023616,2]
[380393489,1755725441311,-2000.0,0.00023616,2]
[380393491,1755725441320,-2000.0,0.00023616,2]
[380393493,1755725441330,-1849.0152414,0.00023616,2]
[380393495,1755725441339,-2000.0,0.00023616,2]
[380393497,1755725441349,-1648.81340019,0.00023616,2]
[380393499,1755725441359,-1216.15902767,0.00023616,2]
[380393501,1755725441368,-2000.0,0.00023616,2]
[380393503,1755725441378,-2000.0,0.00023616,2]
[380393505,1755725441387,-2000.0,0.00023616,2]
[380393507,1755725441397,-2362.0,0.00023622,2]
[380393509,1755725441406,-1720.74,0.00023634,30]
[380393511,1755725441416,-7318.2,0.000237,7]
[380393513,1755725441425,-2362.0,0.00023793,2]
[380393515,1755725441435,-2362.0,0.00023829,2]
[380393517,1755725441444,-2362.0,0.00023982,2]
[380393519,1755725441453,-5000.00169301,0.00024,5]
[380393521,1755725441463,-2171.22688996,0.00024,30]
[380393523,1755725441472,-4000.0,0.00024,4]
[380393525,1755725441482,-2362.0,0.00024003,2]
[380393527,1755725441491,-454.0,0.00024164,7]
[380393530,1755725441500,-453.0,0.00024164,7]
[380393531,1755725441509,-2500.0,0.00024164,2]
[380393534,1755725441519,-1742.88028938,0.00024164,2]
[380393536,1755725441529,-2500.0,0.00024164,2]
[380393538,1755725441538,-2500.0,0.00024164,2]
[380393540,1755725441547,-305.81616925,0.00024164,2]
[380393542,1755725441556,-2500.0,0.00024164,2]
[380393544,1755725441566,-183.0,0.00024299,3]
[380393546,1755725441575,-9742.47845702,0.00024368,2]
[380393548,1755725441584,-5000.0,0.00024368,2]
[380393550,1755725441593,-5000.0,0.00024368,2]
[380393552,1755725441603,-5000.0,0.00024368,2]
[380393554,1755725441612,-5000.0,0.00024368,2]
[380393556,1755725441621,-170330.17,0.000244,7]
[380393558,1755725441631,-184.12,0.00024445,2]
[380393560,1755725441640,-184.26,0.000246,7]
[380393562,1755725441649,-13900.47,0.000246,2]
[380393564,1755725441659,-5019.38025871,0.00024658,2]
[380393566,1755725441668,-2000.0,0.00024699,2]
[380393568,1755725441677,-1407.95138748,0.00024712,2]
[380393569,1755725441686,-3000.0,0.00024712,2]
[380393571,1755725441695,-154.68601917,0.00024712,2]
[380393574,1755725441704,-160.0,0.00024792,7]
[380393576,1755725441713,-184.12,0.00024792,2]
[380393578,1755725441723,-300.0,0.00024799,10]
[380393580,1755725441731,-900.0,0.00024799,9]
[380393582,1755725441740,-900.0,0.00024799,9]
[380393584,1755725441749,-900.0,0.00024799,9]
[380393586,1755725441759,-900.0,0.00024799,9]
[380393588,1755725441769,-900.0,0.00024799,9]
[380393590,1755725441778,-900.0,0.00024799,9]
[380393592,1755725441787,-208.40825981,0.00024799,9]
[380393594,1755725441796,-900.0,0.00024799,9]
[380393596,1755725441806,-900.0,0.00024799,9]
[380393598,1755725441815,-900.0,0.00024799,9]
[380393600,1755725441825,-900.0,0.00024799,9]
[380393602,1755725441834,-900.0,0.00024799,9]
[380393604,1755725441844,-900.0,0.00024799,9]
[380393606,1755725441852,-900.0,0.00024799,9]
[380393608,1755725441862,-900.0,0.00024799,9]
[380393610,1755725441871,-900.0,0.00024799,9]
[380393612,1755725441880,-633372.538656,0.000248,2]
[380393614,1755725441890,-500.0,0.0002487,2]
[380393616,1755725441899,-5000.05,0.00024874,2]
[380393618,1755725441908,-4000.01,0.00024874,2]
[380393620,1755725441917,-5000.0,0.0002488,2]
[380393622,1755725441926,-300.0,0.00024899,10]
[380393624,1755725441936,-604823.393252,0.000249,2]
[380393626,1755725441946,-151.0,0.000249,7]
[380393628,1755725441955,-151.0,0.000249,7]
[380393630,1755725441964,-151.0,0.000249,7]
[380393632,1755725441973,-151.0,0.000249,7]
[380393634,1755725441982,-306.52494,0.000249,7]
[380393636,1755725441991,-151.0,0.000249,7]
[380393638,1755725442001,-240.864153,0.000249,7]
[380393640,1755725442010,-306.52494,0.000249,7]
[380393642,1755725442019,-306.52494,0.000249,7]
[380393644,1755725442028,-52018.3433942,0.000249,2]
[380393646,1755725442037,-151.0,0.000249,7]
[380393648,1755725442046,-306.52494,0.000249,7]
[380393650,1755725442055,-151.0,0.000249,7]
[380393652,1755725442064,-151.0,0.000249,7]
[380393654,1755725442073,-151.0,0.000249,7]
[380393656,1755725442082,-350.710148,0.000249,7]
[380393658,1755725442091,-350.710148,0.000249,7]
[380393660,1755725442103,-350.710148,0.000249,7]
[380393661,1755725442112,-350.710148,0.000249,7]
[380393662,1755725442121,-151.0,0.000249,7]
[380393663,1755725442131,-151.0,0.000249,7]
[380393664,1755725442140,-151.0,0.000249,7]
[380393665,1755725442150,-242.164717,0.000249,7]
[380393666,1755725442159,-242.164717,0.000249,7]
[380393667,1755725442169,-242.164717,0.000249,7]
[380393669,1755725442180,-242.164717,0.000249,7]
[380393672,1755725442190,-265.572609,0.000249,7]
[380393674,1755725442199,-265.572609,0.000249,7]
[380393676,1755725442209,-265.572609,0.000249,7]
[380393678,1755725442218,-151.0,0.000249,7]
[380393681,1755725442227,-4940.116629,0.000249,7]
[380393684,1755725442236,-151.0,0.000249,7]
[380393687,1755725442245,-265.572609,0.000249,7]
[380393690,1755725442254,-4940.116629,0.000249,7]
[380393692,1755725442264,-151.0,0.000249,7]
[380393694,1755725442274,-299.530814,0.000249,7]
[380393696,1755725442283,-4940.116629,0.000249,7]
[380393698,1755725442293,-270.708129,0.000249,7]
[380393700,1755725442302,-299.530814,0.000249,7]
[380393702,1755725442312,-151.0,0.000249,7]
[380393704,1755725442322,-4940.116629,0.000249,7]
[380393707,1755725442332,-151.0,0.000249,7]
[380393709,1755725442342,-151.0,0.000249,7]
[380393711,1755725442351,-299.530814,0.000249,7]
[380393713,1755725442361,-151.0,0.000249,7]
[380393715,1755725442370,-299.530814,0.000249,7]
[380393717,1755725442380,-151.0,0.000249,7]
[380393720,1755725442389,-264.299822,0.000249,7]
[380393722,1755725442398,-151.0,0.000249,7]
[380393724,1755725442407,-216.0,0.0002493,30]
[380393726,1755725442417,-202.84760076,0.00025,2]
[380393729,1755725442427,-1744.5612387,0.00025,2]
[380393731,1755725442436,-253.34010133,0.00025,2]
[380393733,1755725442445,-2975.12816502,0.00025,2]
[380393735,1755725442455,-3160.99592159,0.00025,2]
[380393737,1755725442465,-25888.79319691,0.00025,2]
[380393776,1755725442805,-1040.23683806,0.00025,2]
[380393778,1755725442815,-163.50171509,0.00025,2]
[380393780,1755725442824,-10907.34421426,0.00025,15]
[380393782,1755725442834,-4000.0,0.00025,4]
[380393784,1755725442843,-15000.0,0.0002501,2]
[380393786,1755725442853,-229.05412339,0.00025033,2]
[380393788,1755725442862,-342.599999,0.000251,2]
[380393790,1755725442872,-7318.2,0.000251,7]
[380393792,1755725442881,-453.0,0.00025131,7]
[380393794,1755725442891,-250.0,0.00025141,2]
[380393797,1755725442900,-200.0,0.0002518,2]
[380393800,1755725442910,-600.0,0.0002519,2]
[380393803,1755725442919,-1172.0,0.00025205,2]
[380393806,1755725442928,-3371.0,0.00025205,2]
[380393809,1755725442938,-6091.0,0.00025205,2]
[380393812,1755725442947,-2030.0,0.00025205,2]
[380393813,1755725442956,-924.0,0.00025205,2]
[380393814,1755725442966,-4152.0,0.00025205,2]
[380393815,1755725442975,-1255.0,0.00025205,2]
[380393817,1755725442985,-2384.71469546,0.0002526,2]
[380393818,1755725442995,-2500.0,0.00025293,4]
[380393819,1755725443004,-150.0,0.0002531,2]
[380393820,1755725443014,-150.0,0.0002531,2]
[380393821,1755725443024,-150.0,0.0002531,2]
[380393822,1755725443034,-150.0,0.0002531,2]
[380393823,1755725443044,-150.0,0.0002531,2]
[380393824,1755725443053,-150.0,0.0002531,2]
[380393825,1755725443062,-150.0,0.0002531,2]
[380393826,1755725443072,-150.0,0.0002531,2]
[380393827,1755725443081,-150.0,0.0002531,2]
[380393828,1755725443090,-150.0,0.0002531,2]
[380393829,1755725443103,-150.0,0.0002531,2]
[380393830,1755725443112,-150.0,0.0002531,2]
[380393831,1755725443122,-2222.22,0.0002531,7]
[380393832,1755725443133,-453.0,0.00025315,7]
[380393833,1755725443143,-1000.0,0.00025393,2]
[380393834,1755725443152,-600.0,0.00025738,2]
[380393835,1755725443162,-300.0,0.00025799,10]
[380393837,1755725443172,-300.0,0.00025799,10]
[380393839,1755725443183,-666.0,0.00025799,2]
[380393840,1755725443192,-322.6107,0.00025889,2]
[380393841,1755725443202,-721.12765535,0.00025889,2]
[380393842,1755725443211,-277.35679052,0.00025889,2]
[380393843,1755725443221,-204.21,0.00025923,2]
[380393844,1755725443230,-586.9514872,0.0002599,2]
[380393845,1755725443240,-1017.62,0.00026,2]
[380393846,1755725443249,-4433.65,0.00026,2]
[380393848,1755725443259,-2667.43991901,0.00026,2]
[380393850,1755725443268,-211.53671248,0.00026,2]
[380393851,1755725443279,-1800.0,0.00026,27]
[380393852,1755725443288,-170330.17,0.00026,7]
[380393853,1755725443297,-4000.0,0.00026,4]
[380393854,1755725443307,-1000.0,0.00026004,2]
[380393855,1755725443316,-453.0,0.00026098,7]
[380393856,1755725443326,-253.8,0.000261,2]
[380393857,1755725443336,-300.0,0.000261,2]
[380393858,1755725443345,-2222.22,0.00026263,7]
[380393859,1755725443355,-600.0,0.00026286,2]
[380393860,1755725443364,-52018.34339418,0.00026303,5]
[380393861,1755725443374,-2543.2926708,0.00026366,2]
[380393862,1755725443384,-453.0,0.00026466,7]
[380393863,1755725443394,-46822.02704825,0.000265,2]
[380393864,1755725443403,-559.86,0.00026676,2]
[380393865,1755725443413,-600.0,0.00026834,2]
[380393866,1755725443422,-7318.2,0.000269,7]
[380393867,1755725443432,-250.0,0.00027,2]
[380393868,1755725443442,-1922.69935586,0.00027,14]
[380393869,1755725443451,-1010.80425876,0.00027,2]
[380393870,1755725443461,-3038.59234949,0.00027,2]
[380393871,1755725443471,-634.20749437,0.00027,2]
[380393872,1755725443481,-3600.0,0.00027,28]
[380393873,1755725443491,-4000.0,0.00027,4]
[380393874,1755725443500,-278.62,0.00027003,2]
[380393875,1755725443512,-453.0,0.00027064,7]
[380393876,1755725443522,-300.0,0.000271,2]
[380393877,1755725443532,-300.0,0.000271,2]
[380393878,1755725443541,-700.0,0.00027122,2]
[380393879,1755725443551,-500.0,0.00027122,2]
[380393880,1755725443560,-500.0,0.00027122,2]
[380393881,1755725443570,-2222.22,0.00027216,7]
[380393882,1755725443579,-390.16124261,0.00027258,2]
[380393883,1755725443589,-287.61899177,0.00027258,2]
[380393884,1755725443598,-300.0,0.00027299,10]
[380393885,1755725443607,-300.0,0.00027299,10]
[380393886,1755725443617,-666.0,0.00027299,2]
[380393887,1755725443626,-1017.62,0.000273,2]
[380393888,1755725443637,-150.0,0.00027345,4]
[380393889,1755725443646,-150.0,0.00027345,4]
[380393890,1755725443656,-150.0,0.00027345,4]
[380393891,1755725443666,-150.0,0.00027345,4]
[380393892,1755725443676,-150.0,0.00027345,4]
[380393893,1755725443686,-150.0,0.00027345,4]
[380393894,1755725443695,-150.00000001,0.00027345,4]
[380393895,1755725443706,-150.0,0.00027345,4]
[380393896,1755725443715,-150.0,0.00027345,4]
[380393897,1755725443725,-150.0,0.00027345,4]
[380393898,1755725443735,-150.0,0.00027345,4]
[380393899,1755725443744,-150.0,0.00027345,4]
[380393900,1755725443754,-150.0,0.00027345,4]
[380393901,1755725443763,-150.0,0.00027345,4]
[380393902,1755725443774,-150.0,0.00027345,4]
[380393903,1755725443783,-600.0,0.00027382,2]
[380393904,1755725443793,-569.5476342,0.00027397,2]
[380393905,1755725443803,-300.0,0.00027397,2]
[380393906,1755725443813,-1500.0,0.00027397,16]
[380393907,1755725443823,-316.26987937,0.00027397,2]
[380393908,1755725443832,-307.2,0.00027397,80]
[380393909,1755725443842,-300.0,0.00027397,5]
[380393910,1755725443851,-150.0,0.00027446,7]
[380393911,1755725443861,-2000.0,0.00027486,120]
[380393912,1755725443870,-150.0,0.00027524,7]
[380393913,1755725443879,-150.0,0.00027548,7]
[380393914,1755725443888,-150.0,0.00027598,7]
[380393915,1755725443899,-170330.17,0.000276,7]
[380393916,1755725443908,-1000.0,0.00027607,2]
[380393917,1755725443918,-453.0,0.00027616,14]
[380393918,1755725443928,-150.0,0.00027621,7]
[380393919,1755725443937,-150.0,0.00027621,7]
[380393920,1755725443947,-150.06916524,0.00027625,2]
[380393921,1755725443956,-150.0,0.00027649,7]
[380393922,1755725443966,-150.0,0.00027649,7]
[380393923,1755725443976,-400.0,0.000277,15]
[380393924,1755725443986,-150.0,0.00027703,7]
[380393925,1755725443995,-52018.34339418,0.00027707,8]
[380393926,1755725444005,-150.0,0.00027725,7]
[380393927,1755725444016,-150.0,0.0002775,7]
[380393928,1755725444026,-150.0,0.00027779,7]
[380393929,1755725444036,-150.0,0.00027852,7]
[380393930,1755725444045,-150.0,0.00027852,7]
[380393931,1755725444055,-150.0,0.00027881,7]
[380393932,1755725444065,-150.0,0.00027898,7]
[380393933,1755725444075,-150.0,0.00027898,7]
[380393934,1755725444084,-398.93550161,0.00027899,10]
[380393935,1755725444093,-2000.0,0.000279,2]
[380393936,1755725444107,-179835.98361974,0.000279,3]
[380393937,1755725444117,-458.46930693,0.000279,3]
[380393938,1755725444126,-600.0,0.0002793,2]
[380393939,1755725444136,-600.0,0.00027945,5]
[380393940,1755725444146,-150.0,0.00027953,7]
[380393941,1755725444156,-150.0,0.00027953,7]
[380393942,1755725444165,-150.0,0.00027953,7]
[380393943,1755725444176,-279.16,0.00028,2]
[380393944,1755725444186,-200.0,0.00028,18]
[380393945,1755725444195,-1005.48283241,0.00028,7]
[380393946,1755725444205,-630.0,0.00028,2]
[380393947,1755725444215,-4000.0,0.00028,4]
[380393948,1755725444224,-453.0,0.00028031,14]
[380393949,1755725444233,-150.0,0.00028054,7]
[380393950,1755725444243,-150.0,0.0002806,7]
[380393951,1755725444254,-300.0,0.000281,2]
[380393952,1755725444264,-300.0,0.000281,2]
[380393953,1755725444274,-7318.2,0.000281,7]
[380393954,1755725444289,-150.0,0.00028105,7]
[380393955,1755725444299,-150.0,0.00028105,7]
[380393956,1755725444308,-150.0,0.00028105,7]
[380393957,1755725444317,-150.0,0.00028155,7]
[380393958,1755725444327,-2222.22,0.00028168,30]
[380393959,1755725444336,-150.0,0.00028174,7]
[380393960,1755725444347,-150.0,0.00028174,7]
[380393961,1755725444357,-6091.0,0.00028205,2]
[380393962,1755725444371,-2028.0,0.00028205,2]
[380393963,1755725444381,-884.0,0.00028205,2]
[380393964,1755725444391,-4152.0,0.00028205,2]
[380393965,1755725444403,-1255.0,0.00028205,2]
[380393966,1755725444412,-150.0,0.00028213,7]
[380393967,1755725444423,-700.0,0.00028218,7]
[380393968,1755725444432,-500.0,0.00028218,7]
[380393969,1755725444442,-150.0,0.00028239,7]
[380393970,1755725444452,-150.0,0.00028257,7]
[380393971,1755725444462,-150.0,0.00028257,7]
[380393972,1755725444471,-408.32,0.00028278,2]
[380393973,1755725444482,-300.0,0.00028299,10]
[380393974,1755725444492,-300.0,0.00028299,10]
[380393975,1755725444501,-666.0,0.00028299,10]
[380393976,1755725444513,-150.0,0.00028358,7]
[380393977,1755725444524,-150.0,0.00028358,7]
[380393978,1755725444536,-666.0,0.00028382,3]
[380393979,1755725444546,-177.39,0.000284,120]
[380393980,1755725444555,-824.7971196,0.00028408,2]
[380393981,1755725444564,-150.0,0.00028418,7]
[380393982,1755725444574,-150.0,0.0002845,7]
[380393983,1755725444583,-150.0,0.0002845,7]
[380393984,1755725444592,-150.0,0.00028459,7]
[380393985,1755725444601,-600.0,0.00028478,2]
[380393986,1755725444611,-150.0,0.00028485,7]
[380393987,1755725444622,-181.13644639,0.00028493,5]
[380393988,1755725444631,-150.0,0.00028561,7]
[380393989,1755725444641,-150.0,0.00028561,7]
[380393990,1755725444651,-150.0,0.00028561,7]
[380393991,1755725444661,-150.0,0.00028596,7]
[380393992,1755725444671,-1017.62,0.000286,30]
[380393993,1755725444680,-150.0,0.00028611,7]
[380393994,1755725444690,-298.26089446,0.00028627,2]
[380393995,1755725444700,-747.8093786,0.00028628,2]
[380393996,1755725444710,-3687.650376,0.00028629,2]
[380393997,1755725444724,-150.0,0.00028647,7]
[380393998,1755725444735,-150.0,0.00028662,7]
[380393999,1755725444745,-824.7971197,0.00028678,2]
[380394000,1755725444754,-329.98,0.00028699,2]
[380394001,1755725444763,-150.0,0.00028726,7]
[380394002,1755725444773,-150.0,0.00028726,7]
[380394003,1755725444783,-150.0,0.00028763,7]
[380394004,1755725444794,-150.0,0.00028775,7]
[380394005,1755725444803,-174.62,0.00028787,2]
[380394006,1755725444812,-972.0,0.00028794,5]
[380394007,1755725444822,-2000.0,0.0002881,120]
[380394008,1755725444831,-150.0,0.00028864,7]
[380394009,1755725444841,-150.0,0.00028864,7]
[380394010,1755725444851,-150.0,0.00028864,7]
[380394011,1755725444860,-150.0,0.00028864,7]
[380394012,1755725444870,-150.0,0.00028864,7]
[380394013,1755725444879,-150.0,0.00028864,7]
[380394014,1755725444889,-170330.17,0.000289,7]
[380394015,1755725444899,-297.5457879,0.00028902,2]
[380394016,1755725444908,-300.0,0.00028917,10]
[380394017,1755725444918,-300.0,0.00028917,10]
[380394018,1755725444927,-293367.4921684,0.00028918,2]
[380394019,1755725444937,-167.977938,0.00028918,7]
[380394020,1755725444946,-151.0,0.00028918,7]
[380394021,1755725444955,-198.964985,0.00028918,7]
[380394022,1755725444965,-167.977938,0.00028918,7]
[380394023,1755725444975,-53402.4349646,0.00028918,2]
[380394024,1755725444984,-151.0,0.00028918,7]
[380394025,1755725444993,-167.977938,0.00028918,7]
[380394026,1755725445004,-151.0,0.00028918,7]
[380394027,1755725445014,-198.964985,0.00028918,7]
[380394028,1755725445024,-167.977938,0.00028918,7]
[380394029,1755725445035,-198.964985,0.00028918,7]
[380394030,1755725445046,-151.0,0.00028918,7]
[380394031,1755725445057,-198.964985,0.00028918,7]
[380394032,1755725445066,-151.0,0.00028918,7]
[380394033,1755725445076,-151.0,0.00028918,7]
[380394034,1755725445085,-368.903733,0.00028918,7]
[380394035,1755725445094,-276.684377,0.00028918,7]
[380394036,1755725445108,-368.903733,0.00028918,7]
[380394037,1755725445118,-368.903733,0.00028918,7]
[380394038,1755725445127,-368.903733,0.00028918,7]
[380394044,1755725445281,-151.0,0.00028918,7]
[380394046,1755725445291,-151.0,0.00028918,7]
[380394048,1755725445301,-151.0,0.00028918,7]
[380394050,1755725445311,-177.013246,0.00028918,7]
[380394051,1755725445320,-177.013246,0.00028918,7]
[380394052,1755725445330,-177.013246,0.00028918,7]
[380394053,1755725445340,-177.013246,0.00028918,7]
[380394054,1755725445350,-151.0,0.00028918,7]
[380394055,1755725445360,-1308.40617,0.00028918,7]
[380394056,1755725445370,-151.0,0.00028918,7]
[380394057,1755725445379,-1308.40617,0.00028918,7]
[380394058,1755725445389,-187.216216,0.00028918,7]
[380394059,1755725445399,-1308.40617,0.00028918,7]
[380394060,1755725445409,-247.85332,0.00028918,7]
[380394061,1755725445418,-1308.40617,0.00028918,7]
[380394062,1755725445429,-386.51106,0.00028918,7]
[380394063,1755725445438,-151.0,0.00028918,7]
[380394064,1755725445448,-107263.8338968,0.00028918,2]
[380394065,1755725445457,-386.51106,0.00028918,7]
[380394066,1755725445467,-386.51106,0.00028918,7]
[380394067,1755725445476,-386.51106,0.00028918,7]
[380394068,1755725445487,-151.0,0.00028918,7]
[380394069,1755725445496,-226.341115,0.00028918,7]
[380394070,1755725445506,-235.821144,0.00028918,7]
[380394071,1755725445523,-226.341115,0.00028918,7]
[380394072,1755725445534,-151.0,0.00028918,7]
[380394073,1755725445543,-151.0,0.00028918,7]
[380394074,1755725445553,-226.341115,0.00028918,7]
[380394075,1755725445562,-151.0,0.00028918,7]
[380394076,1755725445572,-226.341115,0.00028918,7]
[380394077,1755725445581,-151.0,0.00028918,7]
[380394078,1755725445591,-159.758689,0.00028918,7]
[380394079,1755725445599,-151.0,0.00028918,7]
[380394080,1755725445609,-300.0,0.0002893,10]
[380394081,1755725445619,-300.0,0.0002893,10]
[380394082,1755725445629,-52254.6035342,0.00028931,2]
[380394083,1755725445640,-150.0,0.00028954,7]
[380394084,1755725445650,-150.0,0.00028966,7]
[380394085,1755725445660,-300.0,0.0002897,2]
[380394086,1755725445670,-500.0,0.00028973,5]
[380394087,1755725445680,-500.0,0.00028973,5]
[380394088,1755725445689,-453.0,0.00028997,14]
[380394089,1755725445699,-7546.24387319,0.00029,2]
[380394090,1755725445708,-50969.09661846,0.00029,2]
[380394091,1755725445718,-229602.74554712,0.00029,2]
[380394092,1755725445728,-630.0,0.00029,30]
[380394093,1755725445737,-200.0,0.00029,2]
[380394094,1755725445746,-151.579801,0.00029,7]
[380394095,1755725445755,-284.885957,0.00029,7]
[380394096,1755725445765,-306.52494,0.00029,7]
[380394097,1755725445775,-306.52494,0.00029,7]
[380394098,1755725445784,-306.52494,0.00029,7]
[380394099,1755725445793,-151.0,0.00029,7]
[380394100,1755725445803,-306.52494,0.00029,7]
[380394101,1755725445812,-151.0,0.00029,7]
[380394102,1755725445821,-174.739972,0.00029,7]
[380394103,1755725445831,-151.0,0.00029,7]
[380394104,1755725445840,-350.710148,0.00029,7]
[380394105,1755725445850,-350.710148,0.00029,7]
[380394106,1755725445859,-350.710148,0.00029,7]
[380394107,1755725445869,-350.710148,0.00029,7]
[380394108,1755725445878,-151.0,0.00029,7]
[380394109,1755725445887,-151.0,0.00029,7]
[380394110,1755725445896,-4000.0,0.00029,4]
[380394111,1755725445905,-151.0,0.00029,7]
[380394112,1755725445915,-242.164717,0.00029,7]
[380394113,1755725445924,-242.164717,0.00029,7]
[380394114,1755725445933,-242.164717,0.00029,7]
[380394115,1755725445943,-242.164717,0.00029,7]
[380394116,1755725445952,-265.572609,0.00029,7]
[380394117,1755725445961,-265.572609,0.00029,7]
[380394118,1755725445970,-265.572609,0.00029,7]
[380394119,1755725445979,-151.0,0.00029,7]
[380394120,1755725445988,-4940.116629,0.00029,7]
[380394121,1755725445999,-151.0,0.00029,7]
[380394122,1755725446008,-265.572609,0.00029,7]
[380394123,1755725446017,-4940.116629,0.00029,7]
[380394124,1755725446028,-151.0,0.00029,7]
[380394125,1755725446037,-299.530814,0.00029,7]
[380394126,1755725446047,-4940.116629,0.00029,7]
[380394127,1755725446056,-299.530814,0.00029,7]
[380394128,1755725446065,-4940.116629,0.00029,7]
[380394129,1755725446074,-151.0,0.00029,7]